Workbook

Sheet стр.1_3
CO1: Приложение 2
CO2: к приказу Федеральной службы по тарифам
CO3: от 24 октября 2014 г. № 1831-э
A5: Форма раскрытия информации о структуре и объемах затрат
A6: на оказание услуг по передаче электрической энергии сетевыми
A7: организациями, регулирование деятельности которых осуществляется
A8: методом долгосрочной индексации необходимой валовой выручки
C10: Наименование организации: | AG10: ООО "Нижегородская электросетевая компания"
C11: ИНН: | J11: 5256133344
C12: КПП: | J12: 525601001
C13: Долгосрочный период регулирования: | AQ13: 2024 | AY13: - | BA13: 2028 | BI13: гг.
A15: № п/п | J15: Показатель | BI15: Ед. изм. | BT15: 2025 | CN15: Примечание ***
BT16: план * | CD16: факт **
A17: I | K17: Структура затрат | BI17: х | BT17: х | CD17: х | CN17: х
A18: 1 | K18: Необходимая валовая выручка на содержание | BI18: тыс. руб. | BT18: ='[1]расчет расходов'!$I$105 -> 238,166.12 | CD18: ='[1]расчет расходов'!$K$105 -> 447,313.65 | CN18: РСТ НО в плане базового года ДПР (2024 г.) учтены затраты на ТО и ППР сетей не в полном объеме от заявленого | DI18: =CD18-BT18 -> 209,147.53
A19: 1.1 | K19: Подконтрольные расходы, всего | BI19: тыс. руб. | BT19: ='[1]расчет расходов'!$I$46 -> 196,607.44 | CD19: ='[1]расчет расходов'!$K$46 -> 326,650.45 | CN19: РСТ НО в плане базового года ДПР (2024 г.) учтены затраты на ТО и ППР сетей не в полном объеме от заявленого | DI19: =CD19-BT19 -> 130,043.01
A20: 1.1.1 | K20: Материальные расходы, всего | BI20: тыс. руб. | BT20: ='[1]расчет расходов'!$I$21 -> 34,759.61 | CD20: ='[1]расчет расходов'!$K$21 -> 46,164.43 | CN20: Рост расходов на ремонт хоз. способом (рост цен на материалы и оборудование) | DI20: 11,404.82
A21: 1.1.1.1 | K21: в том числе на сырье, материалы, запасные части, инструмент, топливо | BI21: тыс. руб. | BT21: ='[1]расчет расходов'!$I$22 -> 23,090.71 | CD21: ='[1]расчет расходов'!$K$22 -> 40,753.47 | DI21: 17,662.76
A22: 1.1.1.2 | K22: на ремонт | BI22: тыс. руб. | BT22: =BT21 -> 23,090.71 | CD22: =CD21 -> 40,753.47 | DI22: 17,662.76
A23: 1.1.1.3 | K23: в том числе на работы и услуги производственного характера (в том числе услуги сторонних организаций по содержанию сетей и распределительных устройств) | BI23: тыс. руб. | BT23: ='[1]расчет расходов'!$I$23 -> 11,668.90 | CD23: ='[1]расчет расходов'!$K$23 -> 5,410.95 | DI23: -6,257.94
A24: 1.1.1.3.1 | K24: в том числе на ремонт | BI24: тыс. руб. | CD24: 0.00 | DI24: 0.00
A25: 1.1.2 | K25: Фонд оплаты труда | BI25: тыс. руб. | BT25: ='[1]расчет расходов'!$I$24 -> 88,837.19 | CD25: ='[1]расчет расходов'!$K$24 -> 119,224.50 | CN25: Фактическая индексация зар платы соответствует рыночной ситуации в регионе. Перераспределение доли ФОТ 26 счета между видами деятельности по факту 2025 г. | DI25: 30,387.31
A26: 1.1.2.1 | K26: в том числе на ремонт | BI26: тыс. руб. | DI26: 0.00
A27: 1.1.3 | K27: Прочие подконтрольные расходы (с расшифровкой) | BI27: тыс. руб. | BT27: ='[1]расчет расходов'!$I$25 -> 72,611.00 | CD27: ='[1]расчет расходов'!$K$25 -> 159,170.11 | CN27: рост затрат по факту 2025 г. связан с заключением договора страхования имущества, уборки,дератизация и проч. | DI27: 86,559.11
A28: 1.1.3.1 | K28: в том числе прибыль на социальное развитие (включая социальные выплаты) | BI28: тыс. руб. | CD28: ='[4]расчет расходов'!$K$43 -> 1,253.03 | CN28: в плане базового года ДПР (2024 г.) затраты не были учтены РСТ в связи с отсутствием отраслевого тарифного соглашения | DI28: 1,253.03
A29: 1.1.3.2 | K29: в том числе транспортные услуги | BI29: тыс. руб. | BT29: ='[1]расчет расходов'!$I$32 -> 3,204.90 | CD29: ='[1]расчет расходов'!$K$32 -> 8,163.27 | DI29: 4,958.38
A30: 1.1.3.3 | K30: в том числе прочие расходы (с расшифровкой)**** | BI30: тыс. руб. | BT30: =BZ31+BZ32+BZ33+BZ34+BZ35+BZ36+BZ37+BZ38+BZ39+BZ40+BZ41 -> 69,406.10 | CD30: =CD31+CD32+CD33+CD34+CD35+CD36+CD37+CD38+CD39 -> 144,873.53 | DI30: 75,467.42
J31: ='[2]Расчёт расходов'!$E$30 -> Ремонт основных фондов | BI31: тыс. руб. | BZ31: ='[1]расчет расходов'!$I$26 -> 61,712.15 | CD31: ='[1]расчет расходов'!$K$26 -> 32,029.58 | CN31: частичный переход с выполнения кап. ремонтов подрядным способом на кап. ремонты хоз. способом (силами ЭСЦ ООО "НЭСК")
J32: =DE33 -> Услуги связи | BI32: тыс. руб. | BZ32: ='[1]расчет расходов'!$I$28 -> 380.73 | CD32: ='[1]расчет расходов'!$K$28 -> 580.06 | CN32: рост стоиомости услуг и объема услуг в связи с введением системы ИСУ АСКУЭ (услуги интернета и моб связи) | DE32: Работы и услуги непроизводственного характера
J33: =DE34 -> Расходы на услуги вневедомственной охраны и коммунального хозяйства | BI33: тыс. руб. | BZ33: ='[1]расчет расходов'!$I$29 -> 2,284.42 | CD33: ='[1]расчет расходов'!$K$29 -> 2,792.24 | CN33: Рост стоимости и объема услуг охраны ПС "Дизель" в связи с ужесточением антитеррористических мероприятий в регионе | DE33: Услуги связи
J34: =DE35 -> Расходы на юридические услуги и информационные услуги | BI34: тыс. руб. | BZ34: ='[1]расчет расходов'!$I$30 -> 992.95 | CD34: ='[1]расчет расходов'!$K$30 -> 107,612.08 | DE34: Расходы на услуги вневедомственной охраны и коммунального хозяйства
J35: =DE36 -> Расходы на аудиторские и консультационные услуги | BI35: тыс. руб. | DE35: Расходы на юридические услуги и информационные услуги
J36: Прочие подконтрольные расходы | BI36: тыс. руб. | BZ36: ='[1]расчет расходов'!$I$38 -> 1,716.57 | CD36: ='[1]расчет расходов'!$K$38 -> 0.00 | DE36: Расходы на аудиторские и консультационные услуги
J37: Прочие услуги сторонних организаций | BI37: тыс. руб. | BZ37: ='[1]расчет расходов'!$I$33 -> 1,300.48 | CD37: ='[1]расчет расходов'!$K$33 -> 1,610.11 | DE37: Транспортные услуги
J38: Расходы на командировки и представительские | BI38: тыс. руб. | BZ38: ='[1]расчет расходов'!$I$34 -> 945.62 | CD38: ='[1]расчет расходов'!$K$34 -> 171.94 | DE38: Прочие услуги сторонних организаций
J39: Расходы на подготовку кадров | BI39: тыс. руб. | BZ39: ='[1]расчет расходов'!$I$35 -> 73.18 | CD39: ='[1]расчет расходов'!$K$35 -> 77.50 | DE39: Расходы на командировки и представительские
J40: Расходы на обеспечение нормальных условий труда и мер по технике безопасности | BI40: тыс. руб. | DE40: Расходы на подготовку кадров
J41: Расходы на страхование | BI41: тыс. руб. | BZ41: ='[1]расчет расходов'!$I$37 -> 0.00 | CD41: ='[1]расчет расходов'!$K$37 -> 6,133.31 | CN41: в плане базового года ДПР (2024 г.) затраты не были учтены РСТ. Договор заключен в связи с необходимостью страхования критически важных объектов инфраструктуры в условиях проведения СВО | DE41: Расходы на обеспечение нормальных услуовий труда и мер по технике безопасности
A42: 1.1.4 | K42: Расходы на обслуживание операционных заемных средств в составе подконтрольных расходов | BI42: тыс. руб. | DE42: Расходы на страхование | DI42: 0.00
A43: 1.1.5 | K43: Расходы из прибыли в составе подконтрольных расходов | BI43: тыс. руб. | DI43: 0.00
A44: 1.2 | K44: Неподконтрольные расходы, включенные в НВВ, всего | BI44: тыс. руб. | BT44: ='[1]расчет расходов'!$I$74 -> 96,914.63 | CD44: ='[1]расчет расходов'!$K$74 -> 120,663.21 | CN44: Отклонения по аренде и соц. отчислениям - см. ниже | DI44: 23,748.57
A45: 1.2.1 | K45: Оплата услуг ОАО "ФСК ЕЭС" | BI45: тыс. руб. | BT45: 0.00 | CD45: 0.00 | DI45: 0.00
A46: 1.2.2 | K46: Расходы на оплату технологического присоединения к сетям смежной сетевой организации | BI46: тыс. руб. | BT46: 0.00 | CD46: 0.00 | DI46: 0.00
A47: 1.2.3 | K47: Плата за аренду имущества | BI47: тыс. руб. | BT47: ='[1]расчет расходов'!$I$57 -> 5,555.34 | CD47: ='[1]расчет расходов'!$K$58 -> 23,224.31 | CN47: По факту 2025 г. стоимость аренды оплачена арендодателям по рыночной цене, а РСТ учтена по плану 2025 г.- в размере возмещения затрат на амортизацию и налоги | DI47: 17,668.97
A48: 1.2.4 | K48: отчисления на социальные нужды | BI48: тыс. руб. | BT48: ='[1]расчет расходов'!$I$66 -> 17,225.53 | CD48: ='[1]расчет расходов'!$K$66 -> 26,384.38 | CN48: Рост ФОТ - см п. 1.1.2. | DI48: 9,158.85
A49: 1.2.5 | K49: расходы на возврат и обслуживание долгосрочных заемных средств, направляемых на финансирование капитальных вложений | BI49: тыс. руб. | CN49: Ставка кредитования по факту ниже планового расчета | DI49: 0.00
A50: 1.2.6 | K50: амортизация | BI50: тыс. руб. | BT50: ='[1]расчет расходов'!$I$70 -> 37,400.40 | CD50: ='[1]расчет расходов'!$K$70 -> 66,965.64 | CN50: Ввод объектов ОС от уровня 2023 г. по договорам тех. прис. и инвест. программе. Расчет регулятора по максимальным срокам полезного использования | DI50: 29,565.24
A51: 1.2.7 | K51: налог на величину капитальных вложений | BI51: тыс. руб. | BT51: ='[1]расчет расходов'!$I$69 -> 3,750.00 | DI51: -3,750.00
A52: 1.2.8 | K52: налог на прибыль | BI52: тыс. руб. | BT52: ='[1]расчет расходов'!$I$68 -> 532.00 | DI52: -532.00
A53: 1.2.9 | K53: прочие налоги | BI53: тыс. руб. | BT53: ='[1]расчет расходов'!$I$61 -> 361.47 | CD53: ='[1]расчет расходов'!$K$61 -> 301.12 | DI53: -60.35
A54: 1.2.10 | K54: Расходы сетевой организации, связанные с осуществлением технологического присоединения к электрическим сетям, не включенные в плату за технологическое присоединение | BI54: тыс. руб. | BT54: 0.00 | CD54: 0.00 | DI54: 0.00
A55: 1.2.10.1 | K55: Справочно: "Количество льготных технологических присоединений" | BI55: ед. | BT55: 0.00 | CD55: 0.00 | DI55: 0.00
A56: 1.2.11 | K56: Средства, подлежащие дополнительному учету по результатам вступивших в законную силу решений суда, решений ФСТ России, принятых по итогам рассмотрения разногласий или досудебного урегулирования споров, решения ФСТ России об отмене решения регулирующего органа, принятого им с превышением полномочий (предписания) | BI56: тыс. руб. | BT56: 0.00 | CD56: 0.00 | DI56: 0.00
A57: 1.2.12 | K57: прочие неподконтрольные расходы (с расшифровкой) | BI57: тыс. руб. | BT57: ='[1]расчет расходов'!$I$67 -> 0.00 | CD57: ='[1]расчет расходов'!$K$67 -> 0.00 | CN57: рост расходов на комунальные услуги от уровня, утвержденного регулятором | DI57: 0.00
A58: 1.3 | K58: недополученный по независящим причинам доход (+)/избыток средств, полученный в предыдущем периоде регулирования (-) | BI58: тыс. руб. | BT58: ='[4]расчет расходов'!$I$78 -> 37,762.09 | CD58: 0.00 | DI58: -37,762.09
A59: II | K59: Справочно: расходы на ремонт, всего (пункт 1.1.1.2 + пункт 1.1.2.1 + пункт 1.1.3.1) | BI59: тыс. руб. | BT59: =BT22+BT26+BT28 -> 23,090.71 | CD59: =CD22+CD24+CD26 -> 40,753.47 | CN59: частичный переход с выполнения кап. ремонтов подрядным способом на кап. ремонты хоз. способом (силами ЭСЦ ООО "НЭСК") | DI59: 17,662.76
A60: III | K60: Необходимая валовая выручка на оплату технологического расхода (потерь) электроэнергии | BI60: тыс. руб. | BT60: =(BT61/2*'[5]П1.25'!$I$13+'[5]П1.25'!$J$13*BT61/2)/1000 -> 186,557.00 | CD60: =115329 -> 115,329.00 | CN60: Экономия связана с фактором снижения объема потерь в связи с паданием объема реализации от утвержденного баланса 2025 г. | DI60: -71,228.00
A61: 1.1 | K61: Справочно: Объем технологических потерь | BI61: МВт∙ч | BT61: ='[5]П1.4'!$P$18*1000 -> 36,478.40 | CD61: ='[1]П1.4'!$P$18*1000 -> 26,120.97 | CN61: снижение размера потерь связано с фактором снижения объема потерь в связи с паданием объема реализации от утвержденного баланса 2025 г. | DI61: -10,357.44
A62: 1.2 | K62: Справочно: Цена покупки электрической энергии сетевой организацией в целях компенсации технологического расхода электрической энергии | BI62: тыс. руб./МВт*ч | BT62: =BT60/BT61*1000 -> 5,114.18 | CD62: =CD60/CD61*1000 -> 4,415.19 | CN62: снижение рыночных цен на Ээ на оптовом рынке Ээ и мощности по факту 2026 | DI62: -698.99
A63: IV | K63: Натуральные (количественные) показатели, используемые при определении структуры и объемов затрат на оказание услуг по передаче электрической энергии сетевыми организациями | BI63: х | BT63: х | CD63: х
A64: 1 | K64: общее количество точек подключения на конец года | BI64: шт. | BT64: 539.00 | CD64: =616 -> 616.00 | CN64: по факту 2025 -учтены опосредованные потребители | DI64: 77.00
A65: 2 | K65: Трансформаторная мощность подстанций, всего | BI65: МВа | BT65: 1,249.43 | CD65: ='[4]Мощ, ВЛ, КЛ'!$H$7 -> 1,465.71 | DI65: 216.28
A66: 2.1 | K66: в том числе трансформаторная мощность подстанций на уровне напряжения ВН | BI66: МВа | BT66: 560.00 | CD66: ='[3]Прилож1 МУ 421-э'!$CD$48:$CL$48 -> 560.00 | DI66: 0.00
A67: 2.2 | K67: в том числе трансформаторная мощность подстанций на уровне напряжения СН2 | BI67: МВа | BT67: =BT65-BT66 -> 689.43 | CD67: =CD65-CD66 -> 905.71 | DI67: 216.28
A68: 3 | K68: Количество условных единиц по линиям электропередач, всего | BI68: у.е. | BT68: ='[1]Р.2.1'!$M$49 -> 2,411.57 | CD68: ='[1]Р.2.1'!$P$49 -> 2,411.57 | DI68: -0.00
A69: 3.1 | K69: в том числе количество условных единиц по линиям электропередач на уровне напряжения ВН | BI69: у.е. | BT69: ='[1]Р.2.1'!$M$50 -> 0.05 | CD69: ='[1]Р.2.1'!$P$50 -> 0.05 | DI69: -0.00
A70: 3.2 | K70: в том числе количество условных единиц по линиям электропередач на уровне напряжения СН2 | BI70: у.е. | BT70: ='[1]Р.2.1'!$M$52 -> 2,408.97 | CD70: ='[1]Р.2.1'!$P$52 -> 2,408.97 | DI70: 0.00
D71: 3.3. | K71: в том числе количество условных единиц по линиям электропередач на уровне напряжения НН | BI71: у.е. | BV71: ='[1]Р.2.1'!$M$53 -> 2.55 | CD71: ='[1]Р.2.1'!$P$53 -> 2.55 | DI71: =#REF!-BT71 -> 
A72: 4 | K72: Количество условных единиц по подстанциям, всего | BI72: у.е. | BT72: ='[1]Р.2.2'!$M$69 -> 4,626.40 | CD72: ='[1]Р.2.2'!$P$69 -> 4,646.30 | DI72: 19.90
A73: 4.1 | K73: в том числе Количество условных единиц по подстанциям на уровне напряжения ВН | BI73: у.е. | BT73: ='[1]Р.2.2'!$M$70 -> 469.60 | CD73: ='[1]Р.2.2'!$P$70 -> 469.60 | DI73: 0.00
A74: 4.2 | K74: в том числе Количество условных единиц по подстанциям на уровне напряжения СН2 | BI74: у.е. | BT74: ='[1]Р.2.2'!$M$72 -> 4,156.80 | CD74: ='[1]Р.2.2'!$P$72 -> 4,176.70 | DI74: 19.90
A75: 5 | K75: Длина линий электропередач, всего | BI75: км | BT75: ='[1]Р.2.1'!$L$49 -> 689.29 | CD75: ='[1]Р.2.1'!$O$49 -> 689.29 | DI75: -0.00
A76: 5.1 | K76: в том числе длина линий электропередач на уровне напряжения ВН | BI76: км | BT76: ='[1]Р.2.1'!$L$50 -> 0.03 | CD76: ='[1]Р.2.1'!$O$50 -> 0.03 | DI76: -0.00
A77: 5.2. | K77: в том числе длина линий электропередач на уровне напряжения СН2 | BI77: км | BT77: ='[1]Р.2.1'!$L$52 -> 688.28 | CD77: ='[1]Р.2.1'!$O$52 -> 688.28 | DI77: 0.00
F78: 5.3 | K78: в том числе длина линий электропередач на уровне напряжения НН | BI78: км | BW78: ='[1]Р.2.1'!$L$53 -> 0.98 | CD78: ='[1]Р.2.1'!$O$53 -> 0.98 | DI78: =#REF!-BT78 -> 
A79: 6 | K79: Доля кабельных линий электропередач | BI79: % | BT79: =BT77/BT75 -> 99.85% | CD79: =CD77/CD75 -> 99.85% | DI79: 0.00
A80: 7 | K80: Ввод в эксплуатацию новых объектов электросетевого комплекса на конец года | BI80: тыс. руб. | BT80: 0.00 | CD80: =137739096.76/1000 -> 137,739.10 | CN80: Ввод ОС в рамках выполнения тех. присоединений и инвест программы | DI80: 137,739.10
A81: 7.1 | K81: в том числе за счет платы за технологическое присоединение | BI81: тыс. руб. | BT81: 0.00 | CD81: =55492020.76/1000 -> 55,492.02 | DI81: 55,492.02
A82: 8 | K82: норматив технологического расхода (потерь) электрической энергии, установленный Минэнерго России ***** | BI82: % | BT82: ='[4]Долгосрочные параметры'!$E$7 -> 4.17 | CD82: ='[4]П1.4'!$P$19 -> 4.21 | CN82: рост размера норматива потерь связано с отклонением структуры баланса эл. энергии в разбивке по уровням напряжения по факту 2025 г. от плана. | DI82: 0.04
A86: Генеральный директор ООО "НЭСК" | CQ86: Д.А.Недоростков
G87: Примечание:
A88: _____*_В случае определения плановых значений показателей органами исполнительной власти в области государственного регулирования тарифов при установлении тарифов на услуги по передаче электрической энергии в столбце <план> указываются соответствующие значения. Плановые значения составляющих подконтрольных расходов раскрываются в отношении расходов, учтенных регулирующим органом на первый год долгосрочного периода регулирования.
A89: _____**_Информация о фактических затратах на оказание регулируемых услуг заполняется на основании данных раздельного учета расходов по регулируемым видам деятельности.
A90: _____***_При наличии отклонений фактических значений показателей от плановых значений более чем на 15 процентов в столбце <Примечание> указываются причины их возникновения.
A91: _____****_В соответствии с пунктом 28 Основ ценообразования в области регулируемых цен (тарифов) в электроэнергетике, утвержденных постановлением Правительства Российской Федерации от 29.12.2011 № 1178.
A92: _____*****_В соответствии с пунктом 4.2.14.8 Положения о Министерстве энергетики Российской Федерации, утвержденного постановлением Правительства Российской Федерации от 28.05.2008 № 400.
